[Event "Titled Tuesday Blitz February 28 Early 2023"]
[White "Cabezas Solano, David Alejandro"]
[Black "Madaminov, Mukhiddin"]
[WhiteFideId "6507522"]
[BlackFideId "14210703"]
[WhiteElo "2030"]
[BlackElo "2511"]
[Result "0-1"]
[Round "01"]
[TimeControl "180+2"]
[Date "2023.02.28"]
[WhiteClock "0:00:01"]
[BlackClock "0:00:48"]

1. d4 {[%clk 0:03:00]}  Nf6 {[%clk 0:03:00]} 2. c4 {[%clk 0:02:57]}  e6 {[%clk 0:03:00]} 3. Nf3 {[%clk 0:02:57]}  b6 {[%clk 0:02:58]} 4. g3 {[%clk 0:02:56]}  Ba6 {[%clk 0:02:58]} 5. Qc2 {[%clk 0:02:51]}  Be7 {[%clk 0:02:54]} 6. Bg2 {[%clk 0:02:49]}  O-O {[%clk 0:02:55]} 7. O-O {[%clk 0:02:49]}  d5 {[%clk 0:02:53]} 8. b3 {[%clk 0:02:45]}  c6 {[%clk 0:02:52]} 9. Rd1 {[%clk 0:02:41]}  Nbd7 {[%clk 0:02:52]} 10. Ne5 {[%clk 0:02:40]}  Nxe5 {[%clk 0:02:47]} 11. dxe5 {[%clk 0:02:40]}  Nd7 {[%clk 0:02:48]} 12. cxd5 {[%clk 0:02:34]}  cxd5 {[%clk 0:02:47]} 13. e4 {[%clk 0:02:33]}  Rc8 {[%clk 0:02:38]} 14. Qd2 {[%clk 0:02:27]}  Nxe5 {[%clk 0:02:29]} 15. exd5 {[%clk 0:02:23]}  Nd3 {[%clk 0:02:23]} 16. Ba3 {[%clk 0:02:07]}  Bg5 {[%clk 0:01:56]} 17. f4 {[%clk 0:01:54]}  Bf6 {[%clk 0:01:55]} 18. Be4 {[%clk 0:01:20]}  Nc5 {[%clk 0:01:17]} 19. Bxc5 {[%clk 0:01:09]}  Rxc5 {[%clk 0:01:16]} 20. Na3 {[%clk 0:00:59]}  Bxa1 {[%clk 0:01:14]} 21. Rxa1 {[%clk 0:00:58]}  exd5 {[%clk 0:01:14]} 22. Bf3 {[%clk 0:00:54]}  Qf6 {[%clk 0:01:14]} 23. Re1 {[%clk 0:00:48]}  h6 {[%clk 0:01:11]} 24. Nb1 {[%clk 0:00:47]}  Rfc8 {[%clk 0:01:08]} 25. Qe3 {[%clk 0:00:35]}  Rc3 {[%clk 0:01:06]} 26. Nxc3 {[%clk 0:00:31]}  Rxc3 {[%clk 0:01:02]} 27. Qf2 {[%clk 0:00:17]}  d4 {[%clk 0:01:02]} 28. Rd1 {[%clk 0:00:13]}  d3 {[%clk 0:01:01]} 29. Qe3 {[%clk 0:00:12]}  g6 {[%clk 0:00:56]} 30. Qe8+ {[%clk 0:00:10]}  Kg7 {[%clk 0:00:56]} 31. Qe3 {[%clk 0:00:09]}  Rc2 {[%clk 0:00:55]} 32. Be4 {[%clk 0:00:08]}  Qb2 {[%clk 0:00:54]} 33. Bxd3 {[%clk 0:00:05]}  Rg2+ {[%clk 0:00:52]} 34. Kf1 {[%clk 0:00:05]}  Rxh2 {[%clk 0:00:46]} 35. Qe5+ {[%clk 0:00:02]}  Qxe5 {[%clk 0:00:46]} 36. fxe5 {[%clk 0:00:03]}  Rh1+ {[%clk 0:00:47]} 37. Ke2 {[%clk 0:00:01]}  Rxd1 {[%clk 0:00:48]} 38. Bxa6 {[%clk 0:00:01]}  Rd5 {[%clk 0:00:48]} 0-1


[Site "https://www.chess.com"]

[Event "Titled Tuesday Blitz February 28 Early 2023"]
[White "Buchenau, Frank"]
[Black "Acor, Corey"]
[WhiteFideId "4604350"]
[BlackFideId "2024861"]
[WhiteElo "2157"]
[BlackElo "2341"]
[Result "0-1"]
[Round "01"]
[TimeControl "180+2"]
[Date "2023.02.28"]
[WhiteClock "0:00:02"]
[BlackClock "0:00:16"]

1. e4 {[%clk 0:02:58]}  e5 {[%clk 0:02:59]} 2. Bc4 {[%clk 0:02:57]}  Nf6 {[%clk 0:02:59]} 3. d3 {[%clk 0:02:58]}  c6 {[%clk 0:02:59]} 4. Nf3 {[%clk 0:02:58]}  d5 {[%clk 0:02:58]} 5. Bb3 {[%clk 0:02:58]}  Bb4+ {[%clk 0:02:57]} 6. Bd2 {[%clk 0:02:56]}  Bd6 {[%clk 0:02:58]} 7. Nc3 {[%clk 0:02:52]}  Be6 {[%clk 0:02:53]} 8. O-O {[%clk 0:02:42]}  Nbd7 {[%clk 0:02:52]} 9. Re1 {[%clk 0:02:37]}  O-O {[%clk 0:02:50]} 10. h3 {[%clk 0:02:20]}  Re8 {[%clk 0:02:37]} 11. Ng5 {[%clk 0:02:18]}  Rc8 {[%clk 0:02:25]} 12. Nxe6 {[%clk 0:02:16]}  fxe6 {[%clk 0:02:25]} 13. Bg5 {[%clk 0:01:55]}  Rf8 {[%clk 0:02:24]} 14. Nb1 {[%clk 0:01:34]}  Qb6 {[%clk 0:02:21]} 15. Be3 {[%clk 0:01:27]}  Nc5 {[%clk 0:02:02]} 16. Nd2 {[%clk 0:01:23]}  a5 {[%clk 0:02:00]} 17. a4 {[%clk 0:01:18]}  Qc7 {[%clk 0:01:50]} 18. Bg5 {[%clk 0:01:11]}  Qf7 {[%clk 0:01:40]} 19. Bh4 {[%clk 0:01:08]}  Qg6 {[%clk 0:01:33]} 20. Bg3 {[%clk 0:00:58]}  Nh5 {[%clk 0:01:26]} 21. Bh2 {[%clk 0:00:44]}  Nf4 {[%clk 0:01:26]} 22. Qg4 {[%clk 0:00:42]}  Qh6 {[%clk 0:01:25]} 23. Nf3 {[%clk 0:00:37]}  Rf6 {[%clk 0:01:14]} 24. Bxf4 {[%clk 0:00:20]}  Rxf4 {[%clk 0:01:15]} 25. Qg5 {[%clk 0:00:19]}  Qxg5 {[%clk 0:01:10]} 26. Nxg5 {[%clk 0:00:19]}  Rcf8 {[%clk 0:00:58]} 27. Nf3 {[%clk 0:00:15]}  g5 {[%clk 0:00:47]} 28. Re2 {[%clk 0:00:14]}  h6 {[%clk 0:00:40]} 29. Rae1 {[%clk 0:00:13]}  Kg7 {[%clk 0:00:35]} 30. exd5 {[%clk 0:00:12]}  exd5 {[%clk 0:00:35]} 31. Nxe5 {[%clk 0:00:12]}  Bxe5 {[%clk 0:00:33]} 32. Rxe5 {[%clk 0:00:12]}  Nxb3 {[%clk 0:00:31]} 33. cxb3 {[%clk 0:00:12]}  Rxf2 {[%clk 0:00:24]} 34. Re7+ {[%clk 0:00:11]}  R8f7 {[%clk 0:00:24]} 35. Rxf7+ {[%clk 0:00:10]}  Rxf7 {[%clk 0:00:24]} 36. Re8 {[%clk 0:00:08]}  Rf4 {[%clk 0:00:18]} 37. Re7+ {[%clk 0:00:06]}  Rf7 {[%clk 0:00:19]} 38. Re8 {[%clk 0:00:06]}  h5 {[%clk 0:00:18]} 39. Ra8 {[%clk 0:00:06]}  Rf4 {[%clk 0:00:15]} 40. Rxa5 {[%clk 0:00:05]}  Rb4 {[%clk 0:00:16]} 41. Kf2 {[%clk 0:00:02]}  Rxb3 {[%clk 0:00:16]} 42. Ke3 {[%clk 0:00:02]}  Rxb2 {[%clk 0:00:16]} 43. g4 {[%clk 0:00:02]}  hxg4 {[%clk 0:00:15]} 44. hxg4 {[%clk 0:00:02]}  Kf6 {[%clk 0:00:16]} 0-1


[Site "https://www.chess.com"]

[Event "Titled Tuesday Blitz February 28 Early 2023"]
[White "Koelle, Tobias"]
[Black "Sreyas Payyappat"]
[WhiteFideId "16207378"]
[BlackFideId "46674969"]
[WhiteElo "2497"]
[BlackElo "2083"]
[Result "1-0"]
[Round "01"]
[TimeControl "180+2"]
[Date "2023.02.28"]
[WhiteClock "0:01:25"]
[BlackClock "0:00:13"]

1. Nf3 {[%clk 0:03:00]}  Nf6 {[%clk 0:02:58]} 2. b3 {[%clk 0:02:59]}  g6 {[%clk 0:02:57]} 3. Bb2 {[%clk 0:02:54]}  Bg7 {[%clk 0:02:58]} 4. e3 {[%clk 0:02:55]}  O-O {[%clk 0:02:57]} 5. Be2 {[%clk 0:02:55]}  b6 {[%clk 0:02:57]} 6. O-O {[%clk 0:02:54]}  Bb7 {[%clk 0:02:56]} 7. c4 {[%clk 0:02:54]}  d6 {[%clk 0:02:54]} 8. d4 {[%clk 0:02:54]}  Nbd7 {[%clk 0:02:53]} 9. Nc3 {[%clk 0:02:54]}  e6 {[%clk 0:02:45]} 10. Rc1 {[%clk 0:02:52]}  c5 {[%clk 0:02:14]} 11. h3 {[%clk 0:02:51]}  Rc8 {[%clk 0:01:58]} 12. Qd2 {[%clk 0:02:47]}  Re8 {[%clk 0:01:32]} 13. Rfd1 {[%clk 0:02:45]}  cxd4 {[%clk 0:01:25]} 14. Nxd4 {[%clk 0:02:44]}  Nc5 {[%clk 0:01:23]} 15. Bf3 {[%clk 0:02:43]}  Bxf3 {[%clk 0:00:59]} 16. Nxf3 {[%clk 0:02:44]}  Nfe4 {[%clk 0:00:51]} 17. Nxe4 {[%clk 0:02:41]}  Nxe4 {[%clk 0:00:49]} 18. Qe2 {[%clk 0:02:41]}  Bxb2 {[%clk 0:00:40]} 19. Qxb2 {[%clk 0:02:42]}  Qe7 {[%clk 0:00:40]} 20. Qd4 {[%clk 0:02:41]}  f5 {[%clk 0:00:29]} 21. Nd2 {[%clk 0:02:40]}  Nf6 {[%clk 0:00:20]} 22. Nb1 {[%clk 0:02:36]}  Red8 {[%clk 0:00:20]} 23. Nc3 {[%clk 0:02:36]}  e5 {[%clk 0:00:20]} 24. Nd5 {[%clk 0:02:35]}  Qe6 {[%clk 0:00:17]} 25. Nxf6+ {[%clk 0:02:35]}  Qxf6 {[%clk 0:00:18]} 26. Qd5+ {[%clk 0:02:36]}  Qf7 {[%clk 0:00:19]} 27. a4 {[%clk 0:02:35]}  Rc5 {[%clk 0:00:17]} 28. Qd2 {[%clk 0:02:33]}  Qe6 {[%clk 0:00:17]} 29. Rc3 {[%clk 0:02:23]}  a5 {[%clk 0:00:15]} 30. Rd3 {[%clk 0:02:23]}  Rc6 {[%clk 0:00:15]} 31. Rd5 {[%clk 0:02:23]}  Kf7 {[%clk 0:00:15]} 32. Qb2 {[%clk 0:02:19]}  Ke7 {[%clk 0:00:15]} 33. h4 {[%clk 0:02:19]}  Rc5 {[%clk 0:00:15]} 34. g3 {[%clk 0:02:18]}  Rxd5 {[%clk 0:00:14]} 35. Rxd5 {[%clk 0:02:17]}  Rc8 {[%clk 0:00:14]} 36. Rb5 {[%clk 0:02:15]}  Rc6 {[%clk 0:00:14]} 37. Qd2 {[%clk 0:02:16]}  Kd7 {[%clk 0:00:14]} 38. c5 {[%clk 0:02:04]}  Rxc5 {[%clk 0:00:08]} 39. Rxb6 {[%clk 0:02:04]}  Qd5 {[%clk 0:00:07]} 40. Qxd5 {[%clk 0:01:54]}  Rxd5 {[%clk 0:00:08]} 41. Rb7+ {[%clk 0:01:55]}  Kc6 {[%clk 0:00:08]} 42. Rxh7 {[%clk 0:01:56]}  Rd3 {[%clk 0:00:08]} 43. Ra7 {[%clk 0:01:56]}  Kb6 {[%clk 0:00:08]} 44. Ra8 {[%clk 0:01:57]}  Kb7 {[%clk 0:00:07]} 45. Rxa5 {[%clk 0:01:56]}  Rxb3 {[%clk 0:00:07]} 46. Rb5+ {[%clk 0:01:31]}  Rxb5 {[%clk 0:00:07]} 47. axb5 {[%clk 0:01:32]}  e4 {[%clk 0:00:08]} 48. g4 {[%clk 0:01:22]}  fxg4 {[%clk 0:00:08]} 49. Kg2 {[%clk 0:01:23]}  Kb6 {[%clk 0:00:08]} 50. Kg3 {[%clk 0:01:24]}  Kxb5 {[%clk 0:00:08]} 51. Kxg4 {[%clk 0:01:25]}  Kc4 {[%clk 0:00:09]} 52. Kg5 {[%clk 0:01:25]}  Kd3 {[%clk 0:00:10]} 53. Kxg6 {[%clk 0:01:26]}  Ke2 {[%clk 0:00:10]} 54. Kf5 {[%clk 0:01:21]}  d5 {[%clk 0:00:10]} 55. Ke5 {[%clk 0:01:22]}  Kxf2 {[%clk 0:00:10]} 56. Kd4 {[%clk 0:01:22]}  Kf3 {[%clk 0:00:10]} 57. h5 {[%clk 0:01:23]}  Kg4 {[%clk 0:00:10]} 58. h6 {[%clk 0:01:24]}  Kf5 {[%clk 0:00:11]} 59. h7 {[%clk 0:01:24]}  Kg6 {[%clk 0:00:12]} 60. h8=Q {[%clk 0:01:25]}  Kf7 {[%clk 0:00:13]} 61. Qe5 {[%clk 0:01:25]} 1-0


[Site "https://www.chess.com"]

[Event "Titled Tuesday Blitz February 28 Early 2023"]
[White "Zemlyanskii, Ivan"]
[Black "Mortazavi, Ali"]
[WhiteFideId "24249971"]
[BlackFideId "401323"]
[WhiteElo "2233"]
[BlackElo "2339"]
[Result "1-0"]
[Round "01"]
[TimeControl "180+2"]
[Date "2023.02.28"]
[WhiteClock "0:00:03"]
[BlackClock "0:00:01"]

1. d4 {[%clk 0:02:59]}  Nf6 {[%clk 0:02:59]} 2. c4 {[%clk 0:02:58]}  g6 {[%clk 0:02:59]} 3. h4 {[%clk 0:02:57]}  Bg7 {[%clk 0:03:00]} 4. Nc3 {[%clk 0:02:57]}  h5 {[%clk 0:02:59]} 5. e4 {[%clk 0:02:57]}  d6 {[%clk 0:03:00]} 6. Be2 {[%clk 0:02:53]}  O-O {[%clk 0:03:00]} 7. Bg5 {[%clk 0:02:53]}  Nc6 {[%clk 0:02:46]} 8. d5 {[%clk 0:02:41]}  Ne5 {[%clk 0:02:46]} 9. Qd2 {[%clk 0:02:37]}  c6 {[%clk 0:02:40]} 10. Nf3 {[%clk 0:02:30]}  Nxf3+ {[%clk 0:02:23]} 11. Bxf3 {[%clk 0:02:31]}  c5 {[%clk 0:02:18]} 12. Be2 {[%clk 0:01:57]}  a6 {[%clk 0:02:16]} 13. a4 {[%clk 0:01:55]}  Bd7 {[%clk 0:01:59]} 14. O-O {[%clk 0:01:53]}  Ng4 {[%clk 0:01:41]} 15. f3 {[%clk 0:01:18]}  Ne5 {[%clk 0:01:35]} 16. Bh6 {[%clk 0:01:18]}  Rb8 {[%clk 0:01:17]} 17. Bxg7 {[%clk 0:01:12]}  Kxg7 {[%clk 0:01:17]} 18. f4 {[%clk 0:01:13]}  Ng4 {[%clk 0:01:17]} 19. Bxg4 {[%clk 0:01:09]}  Bxg4 {[%clk 0:01:17]} 20. f5 {[%clk 0:01:10]}  e5 {[%clk 0:01:01]} 21. dxe6 {[%clk 0:00:42]}  fxe6 {[%clk 0:00:55]} 22. fxg6 {[%clk 0:00:42]}  Kxg6 {[%clk 0:00:40]} 23. Rxf8 {[%clk 0:00:21]}  Qxf8 {[%clk 0:00:41]} 24. Qg5+ {[%clk 0:00:20]}  Kh7 {[%clk 0:00:41]} 25. Rf1 {[%clk 0:00:21]}  Qg7 {[%clk 0:00:36]} 26. Qf4 {[%clk 0:00:18]}  Rg8 {[%clk 0:00:28]} 27. Kh2 {[%clk 0:00:16]}  Bh3 {[%clk 0:00:20]} 28. Qf7 {[%clk 0:00:14]}  Bxg2 {[%clk 0:00:18]} 29. Qxg7+ {[%clk 0:00:11]}  Rxg7 {[%clk 0:00:19]} 30. Rf2 {[%clk 0:00:12]}  Rg4 {[%clk 0:00:16]} 31. Rxg2 {[%clk 0:00:11]}  Rxh4+ {[%clk 0:00:17]} 32. Kg3 {[%clk 0:00:07]}  Rh1 {[%clk 0:00:17]} 33. Rd2 {[%clk 0:00:07]}  Kg6 {[%clk 0:00:13]} 34. Rxd6 {[%clk 0:00:05]}  Kf6 {[%clk 0:00:14]} 35. Rb6 {[%clk 0:00:05]}  Ke5 {[%clk 0:00:12]} 36. Rxb7 {[%clk 0:00:06]}  Kd4 {[%clk 0:00:09]} 37. Rb6 {[%clk 0:00:06]}  e5 {[%clk 0:00:09]} 38. Rxa6 {[%clk 0:00:06]}  Kxc4 {[%clk 0:00:09]} 39. a5 {[%clk 0:00:03]}  h4+ {[%clk 0:00:10]} 40. Kg2 {[%clk 0:00:02]}  Rc1 {[%clk 0:00:10]} 41. Rb6 {[%clk 0:00:03]}  Ra1 {[%clk 0:00:05]} 42. a6 {[%clk 0:00:02]}  Kd3 {[%clk 0:00:03]} 43. Kh3 {[%clk 0:00:02]}  Rh1+ {[%clk 0:00:02]} 44. Kg2 {[%clk 0:00:02]}  Ra1 {[%clk 0:00:02]} 45. Rc6 {[%clk 0:00:03]}  Ke3 {[%clk 0:00:01]} 46. Rh6 {[%clk 0:00:03]} 1-0


[Site "https://www.chess.com"]

[Event "Titled Tuesday Blitz February 28 Early 2023"]
[White "Chernomordik, Pavel"]
[Black "Ohanyan, Emin"]
[WhiteFideId "2804530"]
[BlackFideId "13312022"]
[WhiteElo "2193"]
[BlackElo "2403"]
[Result "0-1"]
[Round "01"]
[TimeControl "180+2"]
[Date "2023.02.28"]
[WhiteClock "0:00:10"]
[BlackClock "0:00:51"]

1. e4 {[%clk 0:02:56]}  e5 {[%clk 0:03:00]} 2. Nf3 {[%clk 0:02:55]}  Nc6 {[%clk 0:02:58]} 3. Bb5 {[%clk 0:02:54]}  f5 {[%clk 0:02:57]} 4. d4 {[%clk 0:02:47]}  fxe4 {[%clk 0:02:57]} 5. Bxc6 {[%clk 0:02:43]}  dxc6 {[%clk 0:02:43]} 6. Nxe5 {[%clk 0:02:42]}  Nf6 {[%clk 0:02:44]} 7. Nc3 {[%clk 0:02:36]}  Bd6 {[%clk 0:02:43]} 8. Qe2 {[%clk 0:02:31]}  O-O {[%clk 0:02:39]} 9. Qc4+ {[%clk 0:02:20]}  Kh8 {[%clk 0:02:26]} 10. Nf7+ {[%clk 0:02:13]}  Rxf7 {[%clk 0:02:25]} 11. Qxf7 {[%clk 0:02:13]}  h6 {[%clk 0:02:20]} 12. Be3 {[%clk 0:02:03]}  Bg4 {[%clk 0:01:57]} 13. h3 {[%clk 0:01:54]}  Bh5 {[%clk 0:01:58]} 14. Qc4 {[%clk 0:01:47]}  Qd7 {[%clk 0:01:56]} 15. g4 {[%clk 0:01:43]}  b5 {[%clk 0:01:48]} 16. Qe2 {[%clk 0:01:40]}  Bf7 {[%clk 0:01:47]} 17. O-O-O {[%clk 0:01:22]}  a5 {[%clk 0:01:31]} 18. g5 {[%clk 0:01:11]}  Bh5 {[%clk 0:01:29]} 19. Qd2 {[%clk 0:01:10]}  Bxd1 {[%clk 0:01:26]} 20. gxf6 {[%clk 0:01:00]}  Bf3 {[%clk 0:01:21]} 21. Rg1 {[%clk 0:00:52]}  gxf6 {[%clk 0:01:17]} 22. d5 {[%clk 0:00:38]}  Rg8 {[%clk 0:01:04]} 23. Rxg8+ {[%clk 0:00:31]}  Kxg8 {[%clk 0:01:05]} 24. dxc6 {[%clk 0:00:23]}  Qxc6 {[%clk 0:01:06]} 25. Nd5 {[%clk 0:00:23]}  Kf7 {[%clk 0:01:03]} 26. Bxh6 {[%clk 0:00:18]}  Qd7 {[%clk 0:00:53]} 27. Bf4 {[%clk 0:00:12]}  Qxh3 {[%clk 0:00:51]} 28. b3 {[%clk 0:00:10]}  Ba3+ {[%clk 0:00:51]} 0-1


[Site "https://www.chess.com"]

[Event "Titled Tuesday Blitz February 28 Early 2023"]
[White "Mazurkiewicz, Michal"]
[Black "Drygalov, Andrey"]
[WhiteFideId "1124943"]
[BlackFideId "24171735"]
[WhiteElo "2054"]
[BlackElo "2471"]
[Result "0-1"]
[Round "01"]
[TimeControl "180+2"]
[Date "2023.02.28"]
[WhiteClock "0:00:04"]
[BlackClock "0:01:50"]

1. e4 {[%clk 0:02:59]}  c5 {[%clk 0:02:58]} 2. Nf3 {[%clk 0:03:00]}  d6 {[%clk 0:02:58]} 3. g3 {[%clk 0:02:59]}  Nf6 {[%clk 0:02:58]} 4. d3 {[%clk 0:03:00]}  g6 {[%clk 0:02:59]} 5. Bg2 {[%clk 0:03:00]}  Bg7 {[%clk 0:02:59]} 6. O-O {[%clk 0:03:01]}  O-O {[%clk 0:03:00]} 7. Re1 {[%clk 0:03:01]}  Nc6 {[%clk 0:03:00]} 8. e5 {[%clk 0:03:01]}  Nd7 {[%clk 0:02:53]} 9. exd6 {[%clk 0:03:01]}  exd6 {[%clk 0:02:54]} 10. Nc3 {[%clk 0:03:01]}  Nde5 {[%clk 0:02:54]} 11. Nxe5 {[%clk 0:02:57]}  Nxe5 {[%clk 0:02:55]} 12. h3 {[%clk 0:02:56]}  Rb8 {[%clk 0:02:54]} 13. a4 {[%clk 0:02:56]}  a6 {[%clk 0:02:53]} 14. a5 {[%clk 0:02:54]}  Nc6 {[%clk 0:02:49]} 15. Nd5 {[%clk 0:02:43]}  Be6 {[%clk 0:02:40]} 16. Qd2 {[%clk 0:02:01]}  Nd4 {[%clk 0:02:33]} 17. Ra3 {[%clk 0:01:40]}  Bxh3 {[%clk 0:02:29]} 18. c3 {[%clk 0:01:39]}  Bxg2 {[%clk 0:02:28]} 19. Kxg2 {[%clk 0:01:40]}  Nc6 {[%clk 0:02:26]} 20. Qg5 {[%clk 0:01:29]}  Qxg5 {[%clk 0:02:25]} 21. Bxg5 {[%clk 0:01:30]}  Rfe8 {[%clk 0:02:24]} 22. Rxe8+ {[%clk 0:01:30]}  Rxe8 {[%clk 0:02:24]} 23. Rb3 {[%clk 0:01:30]}  Nxa5 {[%clk 0:02:24]} 24. Rb6 {[%clk 0:01:30]}  Re5 {[%clk 0:02:18]} 25. Ne7+ {[%clk 0:00:23]}  Kf8 {[%clk 0:02:18]} 26. f4 {[%clk 0:00:24]}  Rxg5 {[%clk 0:02:11]} 27. fxg5 {[%clk 0:00:23]}  Kxe7 {[%clk 0:02:12]} 28. b4 {[%clk 0:00:23]}  cxb4 {[%clk 0:02:11]} 29. cxb4 {[%clk 0:00:24]}  Nc6 {[%clk 0:02:12]} 30. Rxb7+ {[%clk 0:00:25]}  Ke6 {[%clk 0:02:12]} 31. Rb6 {[%clk 0:00:25]}  Kd5 {[%clk 0:02:11]} 32. Rb7 {[%clk 0:00:21]}  Bd4 {[%clk 0:01:56]} 33. Rxf7 {[%clk 0:00:15]}  Nxb4 {[%clk 0:01:56]} 34. Rxh7 {[%clk 0:00:14]}  Nxd3 {[%clk 0:01:56]} 35. Rh6 {[%clk 0:00:09]}  Ne5 {[%clk 0:01:56]} 36. Rh8 {[%clk 0:00:09]}  Kc4 {[%clk 0:01:50]} 37. Ra8 {[%clk 0:00:09]}  Kb5 {[%clk 0:01:50]} 38. Kf1 {[%clk 0:00:10]}  a5 {[%clk 0:01:50]} 39. Ke2 {[%clk 0:00:10]}  a4 {[%clk 0:01:50]} 40. Rd8 {[%clk 0:00:06]}  Bc5 {[%clk 0:01:50]} 41. Ra8 {[%clk 0:00:04]}  a3 {[%clk 0:01:50]} 42. Kd1 {[%clk 0:00:04]}  Kc4 {[%clk 0:01:50]} 43. Kc2 {[%clk 0:00:03]}  Kd4 {[%clk 0:01:50]} 44. Ra4+ {[%clk 0:00:03]}  Ke3 {[%clk 0:01:50]} 45. Kb3 {[%clk 0:00:02]}  Kf3 {[%clk 0:01:50]} 46. g4 {[%clk 0:00:03]}  Nxg4 {[%clk 0:01:49]} 47. Ra8 {[%clk 0:00:04]}  Ne5 {[%clk 0:01:50]} 48. Re8 {[%clk 0:00:04]}  Kg4 {[%clk 0:01:50]} 0-1


[Site "https://www.chess.com"]

[Event "Titled Tuesday Blitz February 28 Early 2023"]
[White "Peng, Li Min"]
[Black "Vedder, Richard"]
[WhiteFideId "14112620"]
[BlackFideId "1004166"]
[WhiteElo "2436"]
[BlackElo "2168"]
[Result "1-0"]
[Round "01"]
[TimeControl "180+2"]
[Date "2023.02.28"]
[WhiteClock "0:00:40"]
[BlackClock "0:01:34"]

1. e4 {[%clk 0:02:55]}  e5 {[%clk 0:02:59]} 2. Nf3 {[%clk 0:02:52]}  Nc6 {[%clk 0:02:59]} 3. Nc3 {[%clk 0:02:43]}  Bb4 {[%clk 0:02:59]} 4. Nd5 {[%clk 0:02:42]}  Nf6 {[%clk 0:02:59]} 5. c3 {[%clk 0:02:36]}  Be7 {[%clk 0:02:57]} 6. Nxf6+ {[%clk 0:02:34]}  Bxf6 {[%clk 0:02:57]} 7. Bc4 {[%clk 0:02:34]}  O-O {[%clk 0:02:56]} 8. d3 {[%clk 0:02:34]}  d6 {[%clk 0:02:57]} 9. O-O {[%clk 0:02:23]}  Be6 {[%clk 0:02:57]} 10. Bxe6 {[%clk 0:02:22]}  fxe6 {[%clk 0:02:58]} 11. Qb3 {[%clk 0:02:22]}  Qc8 {[%clk 0:02:58]} 12. Ng5 {[%clk 0:02:20]}  Bxg5 {[%clk 0:02:50]} 13. Bxg5 {[%clk 0:02:20]}  b6 {[%clk 0:02:50]} 14. Be3 {[%clk 0:01:37]}  Qd7 {[%clk 0:02:50]} 15. f4 {[%clk 0:01:31]}  exf4 {[%clk 0:02:50]} 16. Rxf4 {[%clk 0:01:28]}  Rxf4 {[%clk 0:02:48]} 17. Bxf4 {[%clk 0:01:29]}  Rf8 {[%clk 0:02:45]} 18. Rf1 {[%clk 0:01:30]}  Qf7 {[%clk 0:02:36]} 19. Qd1 {[%clk 0:01:23]}  e5 {[%clk 0:02:33]} 20. Bc1 {[%clk 0:01:20]}  Qxa2 {[%clk 0:02:27]} 21. Rxf8+ {[%clk 0:01:19]}  Kxf8 {[%clk 0:02:28]} 22. h3 {[%clk 0:01:12]}  a5 {[%clk 0:02:19]} 23. Kh2 {[%clk 0:01:10]}  Qf7 {[%clk 0:02:17]} 24. Qg4 {[%clk 0:01:08]}  Nd8 {[%clk 0:01:40]} 25. Qc8 {[%clk 0:00:58]}  Qe7 {[%clk 0:01:40]} 26. Qf5+ {[%clk 0:00:44]}  Kg8 {[%clk 0:01:37]} 27. Bg5 {[%clk 0:00:44]}  Qf8 {[%clk 0:01:33]} 28. Qxf8+ {[%clk 0:00:39]}  Kxf8 {[%clk 0:01:34]} 29. Bxd8 {[%clk 0:00:40]} 1-0


[Site "https://www.chess.com"]

[Event "Titled Tuesday Blitz February 28 Early 2023"]
[White "Nur-Mukhametova, Alisa"]
[Black "Neiksans, Arturs"]
[WhiteFideId "54117739"]
[BlackFideId "11601388"]
[WhiteElo "2007"]
[BlackElo "2497"]
[Result "0-1"]
[Round "01"]
[TimeControl "180+2"]
[Date "2023.02.28"]
[WhiteClock "0:00:35"]
[BlackClock "0:02:21"]

1. d4 {[%clk 0:02:56]}  f5 {[%clk 0:02:59]} 2. c4 {[%clk 0:02:54]}  Nf6 {[%clk 0:02:59]} 3. Nc3 {[%clk 0:02:55]}  d6 {[%clk 0:02:59]} 4. Nf3 {[%clk 0:02:53]}  g6 {[%clk 0:02:58]} 5. g3 {[%clk 0:02:53]}  Bg7 {[%clk 0:02:58]} 6. Bg2 {[%clk 0:02:53]}  O-O {[%clk 0:02:58]} 7. O-O {[%clk 0:02:53]}  c6 {[%clk 0:02:58]} 8. Qc2 {[%clk 0:02:48]}  Na6 {[%clk 0:02:55]} 9. a3 {[%clk 0:02:39]}  Qc7 {[%clk 0:02:53]} 10. Rd1 {[%clk 0:02:18]}  e5 {[%clk 0:02:52]} 11. dxe5 {[%clk 0:02:15]}  dxe5 {[%clk 0:02:52]} 12. e4 {[%clk 0:02:15]}  Nc5 {[%clk 0:02:49]} 13. exf5 {[%clk 0:01:56]}  Bxf5 {[%clk 0:02:48]} 14. Qe2 {[%clk 0:01:48]}  Nb3 {[%clk 0:02:47]} 15. Ra2 {[%clk 0:01:42]}  e4 {[%clk 0:02:40]} 16. Nd4 {[%clk 0:01:16]}  Bg4 {[%clk 0:02:40]} 17. f3 {[%clk 0:01:17]}  exf3 {[%clk 0:02:38]} 18. Bxf3 {[%clk 0:01:17]}  Rae8 {[%clk 0:02:32]} 19. Bxg4 {[%clk 0:00:41]}  Rxe2 {[%clk 0:02:30]} 20. Bxe2 {[%clk 0:00:42]}  Nxc1 {[%clk 0:02:24]} 21. Rxc1 {[%clk 0:00:42]}  Qb6 {[%clk 0:02:25]} 22. Rd1 {[%clk 0:00:35]}  Ne8 {[%clk 0:02:21]} 0-1


[Site "https://www.chess.com"]